{"text_format":"3","workbook":"xlsx","n_sheets":2,"sheets":["Sporing av vekttap","Beregninger"],"not_rendered":{"charts":1,"defined_names":7},"read":"whole","date_system":"1900"}

{"sheet":"Sporing av vekttap","index":0,"n_rows":129,"n_cols":11,"rows_kept":129,"merged":[[0,5,0,9],[1,6,3,9]]}
[null,"MÅLVEKT","DIAGRAMVISNING",null,null,"  ANETTES VEKTTAP"]
[{"$nulls":6},"SPORER"]
[null,{"v":172,"d":"172.0"},"UKENTLIG",{"$nulls":7}," "]
[]
[]
[{"$nulls":10}," "]
{"$rows_empty":18}
[null,"DATO","VEKT"]
[null,"2012-11-30",{"v":176,"d":"176.0"}]
[null,"2012-12-07",{"v":176,"d":"176.0"}]
[null,"2012-12-14",177.6]
[null,"2012-12-21",176.5]
[null,"2012-12-28",176.1]
[null,"2013-01-04",{"v":174,"d":"174.0"}]
[null,"2013-01-11",{"v":173,"d":"173.0"}]
[null,"2013-01-18",{"v":172,"d":"172.0"}]
[null,"2013-01-25",{"v":172,"d":"172.0"}]
[null,"2013-02-01",{"v":173,"d":"173.0"}]
[null,"2013-02-08",{"v":174,"d":"174.0"}]
[null,"2013-02-15",{"v":175,"d":"175.0"}]
[null,"2013-02-22"]
[null,"2013-03-01"]
[null,"2013-03-08"]
[null,"2013-03-15"]
[null,"2013-03-22"]
[null,"2013-03-29"]
[null,"2013-04-05"]
[null,"2013-04-12"]
[null,"2013-04-19"]
[null,"2013-04-26"]
[null,"2013-05-03"]
[null,"2013-05-10"]
[null,"2013-05-17"]
[null,"2013-05-24"]
[null,"2013-05-31"]
[null,"2013-06-07"]
[null,"2013-06-14"]
[null,"2013-06-21"]
[null,"2013-06-28"]
[null,"2013-07-05"]
[null,"2013-07-12"]
[null,"2013-07-19"]
[null,"2013-07-26"]
[null,"2013-08-02"]
[null,"2013-08-09"]
[null,"2013-08-16"]
[null,"2013-08-23"]
[null,"2013-08-30"]
[null,"2013-09-06"]
[null,"2013-09-13"]
[null,"2013-09-20"]
[null,"2013-09-27"]
[null,"2013-10-04"]
[null,"2013-10-11"]
[null,"2013-10-18"]
[null,"2013-10-25"]
[null,"2013-11-01"]
[null,"2013-11-08"]
[null,"2013-11-15"]
[null,"2013-11-22"]
[null,"2013-11-29"]
[null,"2013-12-06"]
[null,"2013-12-13"]
[null,"2013-12-20"]
[null,"2013-12-27"]
[null,"2014-01-03"]
[null,"2014-01-10"]
[null,"2014-01-17"]
[null,"2014-01-24"]
[null,"2014-01-31"]
[null,"2014-02-07"]
[null,"2014-02-14"]
[null,"2014-02-21"]
[null,"2014-02-28"]
[null,"2014-03-07"]
[null,"2014-03-14"]
[null,"2014-03-21"]
[null,"2014-03-28"]
[null,"2014-04-04"]
[null,"2014-04-11"]
[null,"2014-04-18"]
[null,"2014-04-25"]
[null,"2014-05-02"]
[null,"2014-05-09"]
[null,"2014-05-16"]
[null,"2014-05-23"]
[null,"2014-05-30"]
[null,"2014-06-06"]
[null,"2014-06-13"]
[null,"2014-06-20"]
[null,"2014-06-27"]
[null,"2014-07-04"]
[null,"2014-07-11"]
[null,"2014-07-18"]
[null,"2014-07-25"]
[null,"2014-08-01"]
[null,"2014-08-08"]
[null,"2014-08-15"]
[null,"2014-08-22"]
[null,"2014-08-29"]
[null,"2014-09-05"]
[null,"2014-09-12"]
[null,"2014-09-19"]
[null,"2014-09-26"]
[null,"2014-10-03"]
[null,"2014-10-10"]
[null,"2014-10-17"]
[null,"2014-10-24"]
[null,"2014-10-31"]
[null,"2014-11-07"]
[null,"2014-11-14"]
[null,"2014-11-21"]

{"sheet":"Beregninger","index":1,"n_rows":108,"n_cols":17,"rows_kept":108,"hidden":true}
["*** Arket forblir skjult ***"]
[]
[{"$f":"COUNTIF(A5:A108,FALSE)","v":13},"Perioder","Verdier",{"$nulls":3},{"$f":"COUNTIF(H5:H28,\">\"&0)","v":4},"Perioder",null,"Verdier"]
[null,"Uke",null,null,true,null,null,"Måned","Månedsslutt"]
[{"$f":"IF(('Sporing av vekttap'!C26=0)*('Sporing av vekttap'!C25=0),TRUE)","v":false},{"$f":"IF(A5,0,IF('Sporing av vekttap'!B26=0,'Sporing av vekttap'!B25+5,'Sporing av vekttap'!B26))","v":"2012-11-30"},{"$f":"'Sporing av vekttap'!C26","v":176},{"$f":"MIN(Diagramperioder)","v":"2012-11-30"},{"$f":"IF($E$4,Målvekt,NA())","v":172},null,null,{"$f":"DATE(YEAR(B5),MONTH(B5),1)","v":"2012-11-01"},{"$f":"EOMONTH(H5,0)","v":"2012-11-30"},{"$f":"IFERROR(AVERAGEIFS(Vekttabell[VEKT],Vekttabell[DATO],\">=\"&H5,Vekttabell[DATO],\"<=\"&I5),NA())","v":176}]
[{"$f":"IF(('Sporing av vekttap'!C27=0)*('Sporing av vekttap'!C26=0),TRUE)","v":false},{"$f":"IF(A6,0,IF('Sporing av vekttap'!B27=0,'Sporing av vekttap'!B26+5,'Sporing av vekttap'!B27))","v":"2012-12-07"},{"$f":"'Sporing av vekttap'!C27","v":176},{"$f":"MAX(Diagramperioder)","v":"2013-02-22"},172,null,null,{"$f":"IF(I5+1>MAX($B:$B),NA(),I5+1)","v":"2012-12-01"},"2012-12-31",{"$f":"IFERROR(AVERAGEIFS(Vekttabell[VEKT],Vekttabell[DATO],\">=\"&H6,Vekttabell[DATO],\"<=\"&I6),NA())","v":176.55}]
[{"$f":"IF(('Sporing av vekttap'!C28=0)*('Sporing av vekttap'!C27=0),TRUE)","v":false},{"$f":"IF(A7,0,IF('Sporing av vekttap'!B28=0,'Sporing av vekttap'!B27+5,'Sporing av vekttap'!B28))","v":"2012-12-14"},{"$f":"'Sporing av vekttap'!C28","v":177.6},{"$nulls":4},{"$f":"IF(I6+1>MAX($B:$B),NA(),I6+1)","v":"2013-01-01"},"2013-01-31",{"$f":"IFERROR(AVERAGEIFS(Vekttabell[VEKT],Vekttabell[DATO],\">=\"&H7,Vekttabell[DATO],\"<=\"&I7),NA())","v":172.75}]
[{"$f":"IF(('Sporing av vekttap'!C29=0)*('Sporing av vekttap'!C28=0),TRUE)","v":false},{"$f":"IF(A8,0,IF('Sporing av vekttap'!B29=0,'Sporing av vekttap'!B28+5,'Sporing av vekttap'!B29))","v":"2012-12-21"},{"$f":"'Sporing av vekttap'!C29","v":176.5},{"$nulls":4},"2013-02-01","2013-02-28",{"$f":"IFERROR(AVERAGEIFS(Vekttabell[VEKT],Vekttabell[DATO],\">=\"&H8,Vekttabell[DATO],\"<=\"&I8),NA())","v":174}]
[{"$f":"IF(('Sporing av vekttap'!C30=0)*('Sporing av vekttap'!C29=0),TRUE)","v":false},{"$f":"IF(A9,0,IF('Sporing av vekttap'!B30=0,'Sporing av vekttap'!B29+5,'Sporing av vekttap'!B30))","v":"2012-12-28"},{"$f":"'Sporing av vekttap'!C30","v":176.1},{"$nulls":4},{"$error":"#N/A"},{"$error":"#N/A"},{"$f":"IFERROR(AVERAGEIFS(Vekttabell[VEKT],Vekttabell[DATO],\">=\"&H9,Vekttabell[DATO],\"<=\"&I9),NA())","v":{"$error":"#N/A"}}]
[{"$f":"IF(('Sporing av vekttap'!C31=0)*('Sporing av vekttap'!C30=0),TRUE)","v":false},{"$f":"IF(A10,0,IF('Sporing av vekttap'!B31=0,'Sporing av vekttap'!B30+5,'Sporing av vekttap'!B31))","v":"2013-01-04"},{"$f":"'Sporing av vekttap'!C31","v":174},{"$nulls":4},{"$error":"#N/A"},{"$error":"#N/A"},{"$f":"IFERROR(AVERAGEIFS(Vekttabell[VEKT],Vekttabell[DATO],\">=\"&H10,Vekttabell[DATO],\"<=\"&I10),NA())","v":{"$error":"#N/A"}}]
[{"$f":"IF(('Sporing av vekttap'!C32=0)*('Sporing av vekttap'!C31=0),TRUE)","v":false},{"$f":"IF(A11,0,IF('Sporing av vekttap'!B32=0,'Sporing av vekttap'!B31+5,'Sporing av vekttap'!B32))","v":"2013-01-11"},{"$f":"'Sporing av vekttap'!C32","v":173},{"$nulls":4},{"$error":"#N/A"},{"$error":"#N/A"},{"$f":"IFERROR(AVERAGEIFS(Vekttabell[VEKT],Vekttabell[DATO],\">=\"&H11,Vekttabell[DATO],\"<=\"&I11),NA())","v":{"$error":"#N/A"}},{"$nulls":6},{"$f":"MAX($B:$B)","v":"2013-02-22"}]
[{"$f":"IF(('Sporing av vekttap'!C33=0)*('Sporing av vekttap'!C32=0),TRUE)","v":false},{"$f":"IF(A12,0,IF('Sporing av vekttap'!B33=0,'Sporing av vekttap'!B32+5,'Sporing av vekttap'!B33))","v":"2013-01-18"},{"$f":"'Sporing av vekttap'!C33","v":172},{"$nulls":4},{"$error":"#N/A"},{"$error":"#N/A"},{"$f":"IFERROR(AVERAGEIFS(Vekttabell[VEKT],Vekttabell[DATO],\">=\"&H12,Vekttabell[DATO],\"<=\"&I12),NA())","v":{"$error":"#N/A"}}]
[{"$f":"IF(('Sporing av vekttap'!C34=0)*('Sporing av vekttap'!C33=0),TRUE)","v":false},{"$f":"IF(A13,0,IF('Sporing av vekttap'!B34=0,'Sporing av vekttap'!B33+5,'Sporing av vekttap'!B34))","v":"2013-01-25"},{"$f":"'Sporing av vekttap'!C34","v":172},{"$nulls":4},{"$error":"#N/A"},{"$error":"#N/A"},{"$f":"IFERROR(AVERAGEIFS(Vekttabell[VEKT],Vekttabell[DATO],\">=\"&H13,Vekttabell[DATO],\"<=\"&I13),NA())","v":{"$error":"#N/A"}}]
[{"$f":"IF(('Sporing av vekttap'!C35=0)*('Sporing av vekttap'!C34=0),TRUE)","v":false},{"$f":"IF(A14,0,IF('Sporing av vekttap'!B35=0,'Sporing av vekttap'!B34+5,'Sporing av vekttap'!B35))","v":"2013-02-01"},{"$f":"'Sporing av vekttap'!C35","v":173},{"$nulls":4},{"$error":"#N/A"},{"$error":"#N/A"},{"$f":"IFERROR(AVERAGEIFS(Vekttabell[VEKT],Vekttabell[DATO],\">=\"&H14,Vekttabell[DATO],\"<=\"&I14),NA())","v":{"$error":"#N/A"}}]
[{"$f":"IF(('Sporing av vekttap'!C36=0)*('Sporing av vekttap'!C35=0),TRUE)","v":false},{"$f":"IF(A15,0,IF('Sporing av vekttap'!B36=0,'Sporing av vekttap'!B35+5,'Sporing av vekttap'!B36))","v":"2013-02-08"},{"$f":"'Sporing av vekttap'!C36","v":174},{"$nulls":4},{"$error":"#N/A"},{"$error":"#N/A"},{"$f":"IFERROR(AVERAGEIFS(Vekttabell[VEKT],Vekttabell[DATO],\">=\"&H15,Vekttabell[DATO],\"<=\"&I15),NA())","v":{"$error":"#N/A"}}]
[{"$f":"IF(('Sporing av vekttap'!C37=0)*('Sporing av vekttap'!C36=0),TRUE)","v":false},{"$f":"IF(A16,0,IF('Sporing av vekttap'!B37=0,'Sporing av vekttap'!B36+5,'Sporing av vekttap'!B37))","v":"2013-02-15"},{"$f":"'Sporing av vekttap'!C37","v":175},{"$nulls":4},{"$error":"#N/A"},{"$error":"#N/A"},{"$f":"IFERROR(AVERAGEIFS(Vekttabell[VEKT],Vekttabell[DATO],\">=\"&H16,Vekttabell[DATO],\"<=\"&I16),NA())","v":{"$error":"#N/A"}}]
[{"$f":"IF(('Sporing av vekttap'!C38=0)*('Sporing av vekttap'!C37=0),TRUE)","v":false},{"$f":"IF(A17,0,IF('Sporing av vekttap'!B38=0,'Sporing av vekttap'!B37+5,'Sporing av vekttap'!B38))","v":"2013-02-22"},{"$f":"'Sporing av vekttap'!C38","v":0},{"$nulls":4},{"$error":"#N/A"},{"$error":"#N/A"},{"$f":"IFERROR(AVERAGEIFS(Vekttabell[VEKT],Vekttabell[DATO],\">=\"&H17,Vekttabell[DATO],\"<=\"&I17),NA())","v":{"$error":"#N/A"}}]
[{"$f":"IF(('Sporing av vekttap'!C39=0)*('Sporing av vekttap'!C38=0),TRUE)","v":true},{"$f":"IF(A18,0,IF('Sporing av vekttap'!B39=0,'Sporing av vekttap'!B38+5,'Sporing av vekttap'!B39))","v":"00:00:00"},{"$f":"'Sporing av vekttap'!C39","v":0},{"$nulls":4},{"$error":"#N/A"},{"$error":"#N/A"},{"$f":"IFERROR(AVERAGEIFS(Vekttabell[VEKT],Vekttabell[DATO],\">=\"&H18,Vekttabell[DATO],\"<=\"&I18),NA())","v":{"$error":"#N/A"}}]
[{"$f":"IF(('Sporing av vekttap'!C40=0)*('Sporing av vekttap'!C39=0),TRUE)","v":true},{"$f":"IF(A19,0,IF('Sporing av vekttap'!B40=0,'Sporing av vekttap'!B39+5,'Sporing av vekttap'!B40))","v":"00:00:00"},{"$f":"'Sporing av vekttap'!C40","v":0},{"$nulls":4},{"$error":"#N/A"},{"$error":"#N/A"},{"$f":"IFERROR(AVERAGEIFS(Vekttabell[VEKT],Vekttabell[DATO],\">=\"&H19,Vekttabell[DATO],\"<=\"&I19),NA())","v":{"$error":"#N/A"}}]
[{"$f":"IF(('Sporing av vekttap'!C41=0)*('Sporing av vekttap'!C40=0),TRUE)","v":true},{"$f":"IF(A20,0,IF('Sporing av vekttap'!B41=0,'Sporing av vekttap'!B40+5,'Sporing av vekttap'!B41))","v":"00:00:00"},{"$f":"'Sporing av vekttap'!C41","v":0},{"$nulls":4},{"$error":"#N/A"},{"$error":"#N/A"},{"$f":"IFERROR(AVERAGEIFS(Vekttabell[VEKT],Vekttabell[DATO],\">=\"&H20,Vekttabell[DATO],\"<=\"&I20),NA())","v":{"$error":"#N/A"}}]
[{"$f":"IF(('Sporing av vekttap'!C42=0)*('Sporing av vekttap'!C41=0),TRUE)","v":true},{"$f":"IF(A21,0,IF('Sporing av vekttap'!B42=0,'Sporing av vekttap'!B41+5,'Sporing av vekttap'!B42))","v":"00:00:00"},{"$f":"'Sporing av vekttap'!C42","v":0},{"$nulls":4},{"$error":"#N/A"},{"$error":"#N/A"},{"$f":"IFERROR(AVERAGEIFS(Vekttabell[VEKT],Vekttabell[DATO],\">=\"&H21,Vekttabell[DATO],\"<=\"&I21),NA())","v":{"$error":"#N/A"}}]
[{"$f":"IF(('Sporing av vekttap'!C43=0)*('Sporing av vekttap'!C42=0),TRUE)","v":true},{"$f":"IF(A22,0,IF('Sporing av vekttap'!B43=0,'Sporing av vekttap'!B42+5,'Sporing av vekttap'!B43))","v":"00:00:00"},{"$f":"'Sporing av vekttap'!C43","v":0},{"$nulls":4},{"$error":"#N/A"},{"$error":"#N/A"},{"$f":"IFERROR(AVERAGEIFS(Vekttabell[VEKT],Vekttabell[DATO],\">=\"&H22,Vekttabell[DATO],\"<=\"&I22),NA())","v":{"$error":"#N/A"}}]
[{"$f":"IF(('Sporing av vekttap'!C44=0)*('Sporing av vekttap'!C43=0),TRUE)","v":true},{"$f":"IF(A23,0,IF('Sporing av vekttap'!B44=0,'Sporing av vekttap'!B43+5,'Sporing av vekttap'!B44))","v":"00:00:00"},{"$f":"'Sporing av vekttap'!C44","v":0},{"$nulls":4},{"$error":"#N/A"},{"$error":"#N/A"},{"$f":"IFERROR(AVERAGEIFS(Vekttabell[VEKT],Vekttabell[DATO],\">=\"&H23,Vekttabell[DATO],\"<=\"&I23),NA())","v":{"$error":"#N/A"}}]
[{"$f":"IF(('Sporing av vekttap'!C45=0)*('Sporing av vekttap'!C44=0),TRUE)","v":true},{"$f":"IF(A24,0,IF('Sporing av vekttap'!B45=0,'Sporing av vekttap'!B44+5,'Sporing av vekttap'!B45))","v":"00:00:00"},{"$f":"'Sporing av vekttap'!C45","v":0},{"$nulls":4},{"$error":"#N/A"},{"$error":"#N/A"},{"$f":"IFERROR(AVERAGEIFS(Vekttabell[VEKT],Vekttabell[DATO],\">=\"&H24,Vekttabell[DATO],\"<=\"&I24),NA())","v":{"$error":"#N/A"}}]
[{"$f":"IF(('Sporing av vekttap'!C46=0)*('Sporing av vekttap'!C45=0),TRUE)","v":true},{"$f":"IF(A25,0,IF('Sporing av vekttap'!B46=0,'Sporing av vekttap'!B45+5,'Sporing av vekttap'!B46))","v":"00:00:00"},{"$f":"'Sporing av vekttap'!C46","v":0},{"$nulls":4},{"$error":"#N/A"},{"$error":"#N/A"},{"$f":"IFERROR(AVERAGEIFS(Vekttabell[VEKT],Vekttabell[DATO],\">=\"&H25,Vekttabell[DATO],\"<=\"&I25),NA())","v":{"$error":"#N/A"}}]
[{"$f":"IF(('Sporing av vekttap'!C47=0)*('Sporing av vekttap'!C46=0),TRUE)","v":true},{"$f":"IF(A26,0,IF('Sporing av vekttap'!B47=0,'Sporing av vekttap'!B46+5,'Sporing av vekttap'!B47))","v":"00:00:00"},{"$f":"'Sporing av vekttap'!C47","v":0},{"$nulls":4},{"$error":"#N/A"},{"$error":"#N/A"},{"$f":"IFERROR(AVERAGEIFS(Vekttabell[VEKT],Vekttabell[DATO],\">=\"&H26,Vekttabell[DATO],\"<=\"&I26),NA())","v":{"$error":"#N/A"}}]
[{"$f":"IF(('Sporing av vekttap'!C48=0)*('Sporing av vekttap'!C47=0),TRUE)","v":true},{"$f":"IF(A27,0,IF('Sporing av vekttap'!B48=0,'Sporing av vekttap'!B47+5,'Sporing av vekttap'!B48))","v":"00:00:00"},{"$f":"'Sporing av vekttap'!C48","v":0},{"$nulls":4},{"$error":"#N/A"},{"$error":"#N/A"},{"$f":"IFERROR(AVERAGEIFS(Vekttabell[VEKT],Vekttabell[DATO],\">=\"&H27,Vekttabell[DATO],\"<=\"&I27),NA())","v":{"$error":"#N/A"}}]
[{"$f":"IF(('Sporing av vekttap'!C49=0)*('Sporing av vekttap'!C48=0),TRUE)","v":true},{"$f":"IF(A28,0,IF('Sporing av vekttap'!B49=0,'Sporing av vekttap'!B48+5,'Sporing av vekttap'!B49))","v":"00:00:00"},{"$f":"'Sporing av vekttap'!C49","v":0},{"$nulls":4},{"$error":"#N/A"},{"$error":"#N/A"},{"$f":"IFERROR(AVERAGEIFS(Vekttabell[VEKT],Vekttabell[DATO],\">=\"&H28,Vekttabell[DATO],\"<=\"&I28),NA())","v":{"$error":"#N/A"}}]
[{"$f":"IF(('Sporing av vekttap'!C50=0)*('Sporing av vekttap'!C49=0),TRUE)","v":true},{"$f":"IF(A29,0,IF('Sporing av vekttap'!B50=0,'Sporing av vekttap'!B49+5,'Sporing av vekttap'!B50))","v":"00:00:00"},{"$f":"'Sporing av vekttap'!C50","v":0}]
[{"$f":"IF(('Sporing av vekttap'!C51=0)*('Sporing av vekttap'!C50=0),TRUE)","v":true},{"$f":"IF(A30,0,IF('Sporing av vekttap'!B51=0,'Sporing av vekttap'!B50+5,'Sporing av vekttap'!B51))","v":"00:00:00"},{"$f":"'Sporing av vekttap'!C51","v":0}]
[{"$f":"IF(('Sporing av vekttap'!C52=0)*('Sporing av vekttap'!C51=0),TRUE)","v":true},{"$f":"IF(A31,0,IF('Sporing av vekttap'!B52=0,'Sporing av vekttap'!B51+5,'Sporing av vekttap'!B52))","v":"00:00:00"},{"$f":"'Sporing av vekttap'!C52","v":0}]
[{"$f":"IF(('Sporing av vekttap'!C53=0)*('Sporing av vekttap'!C52=0),TRUE)","v":true},{"$f":"IF(A32,0,IF('Sporing av vekttap'!B53=0,'Sporing av vekttap'!B52+5,'Sporing av vekttap'!B53))","v":"00:00:00"},{"$f":"'Sporing av vekttap'!C53","v":0}]
[{"$f":"IF(('Sporing av vekttap'!C54=0)*('Sporing av vekttap'!C53=0),TRUE)","v":true},{"$f":"IF(A33,0,IF('Sporing av vekttap'!B54=0,'Sporing av vekttap'!B53+5,'Sporing av vekttap'!B54))","v":"00:00:00"},{"$f":"'Sporing av vekttap'!C54","v":0}]
[{"$f":"IF(('Sporing av vekttap'!C55=0)*('Sporing av vekttap'!C54=0),TRUE)","v":true},{"$f":"IF(A34,0,IF('Sporing av vekttap'!B55=0,'Sporing av vekttap'!B54+5,'Sporing av vekttap'!B55))","v":"00:00:00"},{"$f":"'Sporing av vekttap'!C55","v":0}]
[{"$f":"IF(('Sporing av vekttap'!C56=0)*('Sporing av vekttap'!C55=0),TRUE)","v":true},{"$f":"IF(A35,0,IF('Sporing av vekttap'!B56=0,'Sporing av vekttap'!B55+5,'Sporing av vekttap'!B56))","v":"00:00:00"},{"$f":"'Sporing av vekttap'!C56","v":0}]
[{"$f":"IF(('Sporing av vekttap'!C57=0)*('Sporing av vekttap'!C56=0),TRUE)","v":true},{"$f":"IF(A36,0,IF('Sporing av vekttap'!B57=0,'Sporing av vekttap'!B56+5,'Sporing av vekttap'!B57))","v":"00:00:00"},{"$f":"'Sporing av vekttap'!C57","v":0}]
[{"$f":"IF(('Sporing av vekttap'!C58=0)*('Sporing av vekttap'!C57=0),TRUE)","v":true},{"$f":"IF(A37,0,IF('Sporing av vekttap'!B58=0,'Sporing av vekttap'!B57+5,'Sporing av vekttap'!B58))","v":"00:00:00"},{"$f":"'Sporing av vekttap'!C58","v":0}]
[{"$f":"IF(('Sporing av vekttap'!C59=0)*('Sporing av vekttap'!C58=0),TRUE)","v":true},{"$f":"IF(A38,0,IF('Sporing av vekttap'!B59=0,'Sporing av vekttap'!B58+5,'Sporing av vekttap'!B59))","v":"00:00:00"},{"$f":"'Sporing av vekttap'!C59","v":0}]
[{"$f":"IF(('Sporing av vekttap'!C60=0)*('Sporing av vekttap'!C59=0),TRUE)","v":true},{"$f":"IF(A39,0,IF('Sporing av vekttap'!B60=0,'Sporing av vekttap'!B59+5,'Sporing av vekttap'!B60))","v":"00:00:00"},{"$f":"'Sporing av vekttap'!C60","v":0}]
[{"$f":"IF(('Sporing av vekttap'!C61=0)*('Sporing av vekttap'!C60=0),TRUE)","v":true},{"$f":"IF(A40,0,IF('Sporing av vekttap'!B61=0,'Sporing av vekttap'!B60+5,'Sporing av vekttap'!B61))","v":"00:00:00"},{"$f":"'Sporing av vekttap'!C61","v":0}]
[{"$f":"IF(('Sporing av vekttap'!C62=0)*('Sporing av vekttap'!C61=0),TRUE)","v":true},{"$f":"IF(A41,0,IF('Sporing av vekttap'!B62=0,'Sporing av vekttap'!B61+5,'Sporing av vekttap'!B62))","v":"00:00:00"},{"$f":"'Sporing av vekttap'!C62","v":0}]
[{"$f":"IF(('Sporing av vekttap'!C63=0)*('Sporing av vekttap'!C62=0),TRUE)","v":true},{"$f":"IF(A42,0,IF('Sporing av vekttap'!B63=0,'Sporing av vekttap'!B62+5,'Sporing av vekttap'!B63))","v":"00:00:00"},{"$f":"'Sporing av vekttap'!C63","v":0}]
[{"$f":"IF(('Sporing av vekttap'!C64=0)*('Sporing av vekttap'!C63=0),TRUE)","v":true},{"$f":"IF(A43,0,IF('Sporing av vekttap'!B64=0,'Sporing av vekttap'!B63+5,'Sporing av vekttap'!B64))","v":"00:00:00"},{"$f":"'Sporing av vekttap'!C64","v":0}]
[{"$f":"IF(('Sporing av vekttap'!C65=0)*('Sporing av vekttap'!C64=0),TRUE)","v":true},{"$f":"IF(A44,0,IF('Sporing av vekttap'!B65=0,'Sporing av vekttap'!B64+5,'Sporing av vekttap'!B65))","v":"00:00:00"},{"$f":"'Sporing av vekttap'!C65","v":0}]
[{"$f":"IF(('Sporing av vekttap'!C66=0)*('Sporing av vekttap'!C65=0),TRUE)","v":true},{"$f":"IF(A45,0,IF('Sporing av vekttap'!B66=0,'Sporing av vekttap'!B65+5,'Sporing av vekttap'!B66))","v":"00:00:00"},{"$f":"'Sporing av vekttap'!C66","v":0}]
[{"$f":"IF(('Sporing av vekttap'!C67=0)*('Sporing av vekttap'!C66=0),TRUE)","v":true},{"$f":"IF(A46,0,IF('Sporing av vekttap'!B67=0,'Sporing av vekttap'!B66+5,'Sporing av vekttap'!B67))","v":"00:00:00"},{"$f":"'Sporing av vekttap'!C67","v":0}]
[{"$f":"IF(('Sporing av vekttap'!C68=0)*('Sporing av vekttap'!C67=0),TRUE)","v":true},{"$f":"IF(A47,0,IF('Sporing av vekttap'!B68=0,'Sporing av vekttap'!B67+5,'Sporing av vekttap'!B68))","v":"00:00:00"},{"$f":"'Sporing av vekttap'!C68","v":0}]
[{"$f":"IF(('Sporing av vekttap'!C69=0)*('Sporing av vekttap'!C68=0),TRUE)","v":true},{"$f":"IF(A48,0,IF('Sporing av vekttap'!B69=0,'Sporing av vekttap'!B68+5,'Sporing av vekttap'!B69))","v":"00:00:00"},{"$f":"'Sporing av vekttap'!C69","v":0}]
[{"$f":"IF(('Sporing av vekttap'!C70=0)*('Sporing av vekttap'!C69=0),TRUE)","v":true},{"$f":"IF(A49,0,IF('Sporing av vekttap'!B70=0,'Sporing av vekttap'!B69+5,'Sporing av vekttap'!B70))","v":"00:00:00"},{"$f":"'Sporing av vekttap'!C70","v":0}]
[{"$f":"IF(('Sporing av vekttap'!C71=0)*('Sporing av vekttap'!C70=0),TRUE)","v":true},{"$f":"IF(A50,0,IF('Sporing av vekttap'!B71=0,'Sporing av vekttap'!B70+5,'Sporing av vekttap'!B71))","v":"00:00:00"},{"$f":"'Sporing av vekttap'!C71","v":0}]
[{"$f":"IF(('Sporing av vekttap'!C72=0)*('Sporing av vekttap'!C71=0),TRUE)","v":true},{"$f":"IF(A51,0,IF('Sporing av vekttap'!B72=0,'Sporing av vekttap'!B71+5,'Sporing av vekttap'!B72))","v":"00:00:00"},{"$f":"'Sporing av vekttap'!C72","v":0}]
[{"$f":"IF(('Sporing av vekttap'!C73=0)*('Sporing av vekttap'!C72=0),TRUE)","v":true},{"$f":"IF(A52,0,IF('Sporing av vekttap'!B73=0,'Sporing av vekttap'!B72+5,'Sporing av vekttap'!B73))","v":"00:00:00"},{"$f":"'Sporing av vekttap'!C73","v":0}]
[{"$f":"IF(('Sporing av vekttap'!C74=0)*('Sporing av vekttap'!C73=0),TRUE)","v":true},{"$f":"IF(A53,0,IF('Sporing av vekttap'!B74=0,'Sporing av vekttap'!B73+5,'Sporing av vekttap'!B74))","v":"00:00:00"},{"$f":"'Sporing av vekttap'!C74","v":0}]
[{"$f":"IF(('Sporing av vekttap'!C75=0)*('Sporing av vekttap'!C74=0),TRUE)","v":true},{"$f":"IF(A54,0,IF('Sporing av vekttap'!B75=0,'Sporing av vekttap'!B74+5,'Sporing av vekttap'!B75))","v":"00:00:00"},{"$f":"'Sporing av vekttap'!C75","v":0}]
[{"$f":"IF(('Sporing av vekttap'!C76=0)*('Sporing av vekttap'!C75=0),TRUE)","v":true},{"$f":"IF(A55,0,IF('Sporing av vekttap'!B76=0,'Sporing av vekttap'!B75+5,'Sporing av vekttap'!B76))","v":"00:00:00"},{"$f":"'Sporing av vekttap'!C76","v":0}]
[{"$f":"IF(('Sporing av vekttap'!C77=0)*('Sporing av vekttap'!C76=0),TRUE)","v":true},{"$f":"IF(A56,0,IF('Sporing av vekttap'!B77=0,'Sporing av vekttap'!B76+5,'Sporing av vekttap'!B77))","v":"00:00:00"},{"$f":"'Sporing av vekttap'!C77","v":0}]
[{"$f":"IF(('Sporing av vekttap'!C78=0)*('Sporing av vekttap'!C77=0),TRUE)","v":true},{"$f":"IF(A57,0,IF('Sporing av vekttap'!B78=0,'Sporing av vekttap'!B77+5,'Sporing av vekttap'!B78))","v":"00:00:00"},{"$f":"'Sporing av vekttap'!C78","v":0}]
[{"$f":"IF(('Sporing av vekttap'!C79=0)*('Sporing av vekttap'!C78=0),TRUE)","v":true},{"$f":"IF(A58,0,IF('Sporing av vekttap'!B79=0,'Sporing av vekttap'!B78+5,'Sporing av vekttap'!B79))","v":"00:00:00"},{"$f":"'Sporing av vekttap'!C79","v":0}]
[{"$f":"IF(('Sporing av vekttap'!C80=0)*('Sporing av vekttap'!C79=0),TRUE)","v":true},{"$f":"IF(A59,0,IF('Sporing av vekttap'!B80=0,'Sporing av vekttap'!B79+5,'Sporing av vekttap'!B80))","v":"00:00:00"},{"$f":"'Sporing av vekttap'!C80","v":0}]
[{"$f":"IF(('Sporing av vekttap'!C81=0)*('Sporing av vekttap'!C80=0),TRUE)","v":true},{"$f":"IF(A60,0,IF('Sporing av vekttap'!B81=0,'Sporing av vekttap'!B80+5,'Sporing av vekttap'!B81))","v":"00:00:00"},{"$f":"'Sporing av vekttap'!C81","v":0}]
[{"$f":"IF(('Sporing av vekttap'!C82=0)*('Sporing av vekttap'!C81=0),TRUE)","v":true},{"$f":"IF(A61,0,IF('Sporing av vekttap'!B82=0,'Sporing av vekttap'!B81+5,'Sporing av vekttap'!B82))","v":"00:00:00"},{"$f":"'Sporing av vekttap'!C82","v":0}]
[{"$f":"IF(('Sporing av vekttap'!C83=0)*('Sporing av vekttap'!C82=0),TRUE)","v":true},{"$f":"IF(A62,0,IF('Sporing av vekttap'!B83=0,'Sporing av vekttap'!B82+5,'Sporing av vekttap'!B83))","v":"00:00:00"},{"$f":"'Sporing av vekttap'!C83","v":0}]
[{"$f":"IF(('Sporing av vekttap'!C84=0)*('Sporing av vekttap'!C83=0),TRUE)","v":true},{"$f":"IF(A63,0,IF('Sporing av vekttap'!B84=0,'Sporing av vekttap'!B83+5,'Sporing av vekttap'!B84))","v":"00:00:00"},{"$f":"'Sporing av vekttap'!C84","v":0}]
[{"$f":"IF(('Sporing av vekttap'!C85=0)*('Sporing av vekttap'!C84=0),TRUE)","v":true},{"$f":"IF(A64,0,IF('Sporing av vekttap'!B85=0,'Sporing av vekttap'!B84+5,'Sporing av vekttap'!B85))","v":"00:00:00"},{"$f":"'Sporing av vekttap'!C85","v":0}]
[{"$f":"IF(('Sporing av vekttap'!C86=0)*('Sporing av vekttap'!C85=0),TRUE)","v":true},{"$f":"IF(A65,0,IF('Sporing av vekttap'!B86=0,'Sporing av vekttap'!B85+5,'Sporing av vekttap'!B86))","v":"00:00:00"},{"$f":"'Sporing av vekttap'!C86","v":0}]
[{"$f":"IF(('Sporing av vekttap'!C87=0)*('Sporing av vekttap'!C86=0),TRUE)","v":true},{"$f":"IF(A66,0,IF('Sporing av vekttap'!B87=0,'Sporing av vekttap'!B86+5,'Sporing av vekttap'!B87))","v":"00:00:00"},{"$f":"'Sporing av vekttap'!C87","v":0}]
[{"$f":"IF(('Sporing av vekttap'!C88=0)*('Sporing av vekttap'!C87=0),TRUE)","v":true},{"$f":"IF(A67,0,IF('Sporing av vekttap'!B88=0,'Sporing av vekttap'!B87+5,'Sporing av vekttap'!B88))","v":"00:00:00"},{"$f":"'Sporing av vekttap'!C88","v":0}]
[{"$f":"IF(('Sporing av vekttap'!C89=0)*('Sporing av vekttap'!C88=0),TRUE)","v":true},{"$f":"IF(A68,0,IF('Sporing av vekttap'!B89=0,'Sporing av vekttap'!B88+5,'Sporing av vekttap'!B89))","v":"00:00:00"},{"$f":"'Sporing av vekttap'!C89","v":0}]
[{"$f":"IF(('Sporing av vekttap'!C90=0)*('Sporing av vekttap'!C89=0),TRUE)","v":true},{"$f":"IF(A69,0,IF('Sporing av vekttap'!B90=0,'Sporing av vekttap'!B89+5,'Sporing av vekttap'!B90))","v":"00:00:00"},{"$f":"'Sporing av vekttap'!C90","v":0}]
[{"$f":"IF(('Sporing av vekttap'!C91=0)*('Sporing av vekttap'!C90=0),TRUE)","v":true},{"$f":"IF(A70,0,IF('Sporing av vekttap'!B91=0,'Sporing av vekttap'!B90+5,'Sporing av vekttap'!B91))","v":"00:00:00"},{"$f":"'Sporing av vekttap'!C91","v":0}]
[{"$f":"IF(('Sporing av vekttap'!C92=0)*('Sporing av vekttap'!C91=0),TRUE)","v":true},{"$f":"IF(A71,0,IF('Sporing av vekttap'!B92=0,'Sporing av vekttap'!B91+5,'Sporing av vekttap'!B92))","v":"00:00:00"},{"$f":"'Sporing av vekttap'!C92","v":0}]
[{"$f":"IF(('Sporing av vekttap'!C93=0)*('Sporing av vekttap'!C92=0),TRUE)","v":true},{"$f":"IF(A72,0,IF('Sporing av vekttap'!B93=0,'Sporing av vekttap'!B92+5,'Sporing av vekttap'!B93))","v":"00:00:00"},{"$f":"'Sporing av vekttap'!C93","v":0}]
[{"$f":"IF(('Sporing av vekttap'!C94=0)*('Sporing av vekttap'!C93=0),TRUE)","v":true},{"$f":"IF(A73,0,IF('Sporing av vekttap'!B94=0,'Sporing av vekttap'!B93+5,'Sporing av vekttap'!B94))","v":"00:00:00"},{"$f":"'Sporing av vekttap'!C94","v":0}]
[{"$f":"IF(('Sporing av vekttap'!C95=0)*('Sporing av vekttap'!C94=0),TRUE)","v":true},{"$f":"IF(A74,0,IF('Sporing av vekttap'!B95=0,'Sporing av vekttap'!B94+5,'Sporing av vekttap'!B95))","v":"00:00:00"},{"$f":"'Sporing av vekttap'!C95","v":0}]
[{"$f":"IF(('Sporing av vekttap'!C96=0)*('Sporing av vekttap'!C95=0),TRUE)","v":true},{"$f":"IF(A75,0,IF('Sporing av vekttap'!B96=0,'Sporing av vekttap'!B95+5,'Sporing av vekttap'!B96))","v":"00:00:00"},{"$f":"'Sporing av vekttap'!C96","v":0}]
[{"$f":"IF(('Sporing av vekttap'!C97=0)*('Sporing av vekttap'!C96=0),TRUE)","v":true},{"$f":"IF(A76,0,IF('Sporing av vekttap'!B97=0,'Sporing av vekttap'!B96+5,'Sporing av vekttap'!B97))","v":"00:00:00"},{"$f":"'Sporing av vekttap'!C97","v":0}]
[{"$f":"IF(('Sporing av vekttap'!C98=0)*('Sporing av vekttap'!C97=0),TRUE)","v":true},{"$f":"IF(A77,0,IF('Sporing av vekttap'!B98=0,'Sporing av vekttap'!B97+5,'Sporing av vekttap'!B98))","v":"00:00:00"},{"$f":"'Sporing av vekttap'!C98","v":0}]
[{"$f":"IF(('Sporing av vekttap'!C99=0)*('Sporing av vekttap'!C98=0),TRUE)","v":true},{"$f":"IF(A78,0,IF('Sporing av vekttap'!B99=0,'Sporing av vekttap'!B98+5,'Sporing av vekttap'!B99))","v":"00:00:00"},{"$f":"'Sporing av vekttap'!C99","v":0}]
[{"$f":"IF(('Sporing av vekttap'!C100=0)*('Sporing av vekttap'!C99=0),TRUE)","v":true},{"$f":"IF(A79,0,IF('Sporing av vekttap'!B100=0,'Sporing av vekttap'!B99+5,'Sporing av vekttap'!B100))","v":"00:00:00"},{"$f":"'Sporing av vekttap'!C100","v":0}]
[{"$f":"IF(('Sporing av vekttap'!C101=0)*('Sporing av vekttap'!C100=0),TRUE)","v":true},{"$f":"IF(A80,0,IF('Sporing av vekttap'!B101=0,'Sporing av vekttap'!B100+5,'Sporing av vekttap'!B101))","v":"00:00:00"},{"$f":"'Sporing av vekttap'!C101","v":0}]
[{"$f":"IF(('Sporing av vekttap'!C102=0)*('Sporing av vekttap'!C101=0),TRUE)","v":true},{"$f":"IF(A81,0,IF('Sporing av vekttap'!B102=0,'Sporing av vekttap'!B101+5,'Sporing av vekttap'!B102))","v":"00:00:00"},{"$f":"'Sporing av vekttap'!C102","v":0}]
[{"$f":"IF(('Sporing av vekttap'!C103=0)*('Sporing av vekttap'!C102=0),TRUE)","v":true},{"$f":"IF(A82,0,IF('Sporing av vekttap'!B103=0,'Sporing av vekttap'!B102+5,'Sporing av vekttap'!B103))","v":"00:00:00"},{"$f":"'Sporing av vekttap'!C103","v":0}]
[{"$f":"IF(('Sporing av vekttap'!C104=0)*('Sporing av vekttap'!C103=0),TRUE)","v":true},{"$f":"IF(A83,0,IF('Sporing av vekttap'!B104=0,'Sporing av vekttap'!B103+5,'Sporing av vekttap'!B104))","v":"00:00:00"},{"$f":"'Sporing av vekttap'!C104","v":0}]
[{"$f":"IF(('Sporing av vekttap'!C105=0)*('Sporing av vekttap'!C104=0),TRUE)","v":true},{"$f":"IF(A84,0,IF('Sporing av vekttap'!B105=0,'Sporing av vekttap'!B104+5,'Sporing av vekttap'!B105))","v":"00:00:00"},{"$f":"'Sporing av vekttap'!C105","v":0}]
[{"$f":"IF(('Sporing av vekttap'!C106=0)*('Sporing av vekttap'!C105=0),TRUE)","v":true},{"$f":"IF(A85,0,IF('Sporing av vekttap'!B106=0,'Sporing av vekttap'!B105+5,'Sporing av vekttap'!B106))","v":"00:00:00"},{"$f":"'Sporing av vekttap'!C106","v":0}]
[{"$f":"IF(('Sporing av vekttap'!C107=0)*('Sporing av vekttap'!C106=0),TRUE)","v":true},{"$f":"IF(A86,0,IF('Sporing av vekttap'!B107=0,'Sporing av vekttap'!B106+5,'Sporing av vekttap'!B107))","v":"00:00:00"},{"$f":"'Sporing av vekttap'!C107","v":0}]
[{"$f":"IF(('Sporing av vekttap'!C108=0)*('Sporing av vekttap'!C107=0),TRUE)","v":true},{"$f":"IF(A87,0,IF('Sporing av vekttap'!B108=0,'Sporing av vekttap'!B107+5,'Sporing av vekttap'!B108))","v":"00:00:00"},{"$f":"'Sporing av vekttap'!C108","v":0}]
[{"$f":"IF(('Sporing av vekttap'!C109=0)*('Sporing av vekttap'!C108=0),TRUE)","v":true},{"$f":"IF(A88,0,IF('Sporing av vekttap'!B109=0,'Sporing av vekttap'!B108+5,'Sporing av vekttap'!B109))","v":"00:00:00"},{"$f":"'Sporing av vekttap'!C109","v":0}]
[{"$f":"IF(('Sporing av vekttap'!C110=0)*('Sporing av vekttap'!C109=0),TRUE)","v":true},{"$f":"IF(A89,0,IF('Sporing av vekttap'!B110=0,'Sporing av vekttap'!B109+5,'Sporing av vekttap'!B110))","v":"00:00:00"},{"$f":"'Sporing av vekttap'!C110","v":0}]
[{"$f":"IF(('Sporing av vekttap'!C111=0)*('Sporing av vekttap'!C110=0),TRUE)","v":true},{"$f":"IF(A90,0,IF('Sporing av vekttap'!B111=0,'Sporing av vekttap'!B110+5,'Sporing av vekttap'!B111))","v":"00:00:00"},{"$f":"'Sporing av vekttap'!C111","v":0}]
[{"$f":"IF(('Sporing av vekttap'!C112=0)*('Sporing av vekttap'!C111=0),TRUE)","v":true},{"$f":"IF(A91,0,IF('Sporing av vekttap'!B112=0,'Sporing av vekttap'!B111+5,'Sporing av vekttap'!B112))","v":"00:00:00"},{"$f":"'Sporing av vekttap'!C112","v":0}]
[{"$f":"IF(('Sporing av vekttap'!C113=0)*('Sporing av vekttap'!C112=0),TRUE)","v":true},{"$f":"IF(A92,0,IF('Sporing av vekttap'!B113=0,'Sporing av vekttap'!B112+5,'Sporing av vekttap'!B113))","v":"00:00:00"},{"$f":"'Sporing av vekttap'!C113","v":0}]
[{"$f":"IF(('Sporing av vekttap'!C114=0)*('Sporing av vekttap'!C113=0),TRUE)","v":true},{"$f":"IF(A93,0,IF('Sporing av vekttap'!B114=0,'Sporing av vekttap'!B113+5,'Sporing av vekttap'!B114))","v":"00:00:00"},{"$f":"'Sporing av vekttap'!C114","v":0}]
[{"$f":"IF(('Sporing av vekttap'!C115=0)*('Sporing av vekttap'!C114=0),TRUE)","v":true},{"$f":"IF(A94,0,IF('Sporing av vekttap'!B115=0,'Sporing av vekttap'!B114+5,'Sporing av vekttap'!B115))","v":"00:00:00"},{"$f":"'Sporing av vekttap'!C115","v":0}]
[{"$f":"IF(('Sporing av vekttap'!C116=0)*('Sporing av vekttap'!C115=0),TRUE)","v":true},{"$f":"IF(A95,0,IF('Sporing av vekttap'!B116=0,'Sporing av vekttap'!B115+5,'Sporing av vekttap'!B116))","v":"00:00:00"},{"$f":"'Sporing av vekttap'!C116","v":0}]
[{"$f":"IF(('Sporing av vekttap'!C117=0)*('Sporing av vekttap'!C116=0),TRUE)","v":true},{"$f":"IF(A96,0,IF('Sporing av vekttap'!B117=0,'Sporing av vekttap'!B116+5,'Sporing av vekttap'!B117))","v":"00:00:00"},{"$f":"'Sporing av vekttap'!C117","v":0}]
[{"$f":"IF(('Sporing av vekttap'!C118=0)*('Sporing av vekttap'!C117=0),TRUE)","v":true},{"$f":"IF(A97,0,IF('Sporing av vekttap'!B118=0,'Sporing av vekttap'!B117+5,'Sporing av vekttap'!B118))","v":"00:00:00"},{"$f":"'Sporing av vekttap'!C118","v":0}]
[{"$f":"IF(('Sporing av vekttap'!C119=0)*('Sporing av vekttap'!C118=0),TRUE)","v":true},{"$f":"IF(A98,0,IF('Sporing av vekttap'!B119=0,'Sporing av vekttap'!B118+5,'Sporing av vekttap'!B119))","v":"00:00:00"},{"$f":"'Sporing av vekttap'!C119","v":0}]
[{"$f":"IF(('Sporing av vekttap'!C120=0)*('Sporing av vekttap'!C119=0),TRUE)","v":true},{"$f":"IF(A99,0,IF('Sporing av vekttap'!B120=0,'Sporing av vekttap'!B119+5,'Sporing av vekttap'!B120))","v":"00:00:00"},{"$f":"'Sporing av vekttap'!C120","v":0}]
[{"$f":"IF(('Sporing av vekttap'!C121=0)*('Sporing av vekttap'!C120=0),TRUE)","v":true},{"$f":"IF(A100,0,IF('Sporing av vekttap'!B121=0,'Sporing av vekttap'!B120+5,'Sporing av vekttap'!B121))","v":"00:00:00"},{"$f":"'Sporing av vekttap'!C121","v":0}]
[{"$f":"IF(('Sporing av vekttap'!C122=0)*('Sporing av vekttap'!C121=0),TRUE)","v":true},{"$f":"IF(A101,0,IF('Sporing av vekttap'!B122=0,'Sporing av vekttap'!B121+5,'Sporing av vekttap'!B122))","v":"00:00:00"},{"$f":"'Sporing av vekttap'!C122","v":0}]
[{"$f":"IF(('Sporing av vekttap'!C123=0)*('Sporing av vekttap'!C122=0),TRUE)","v":true},{"$f":"IF(A102,0,IF('Sporing av vekttap'!B123=0,'Sporing av vekttap'!B122+5,'Sporing av vekttap'!B123))","v":"00:00:00"},{"$f":"'Sporing av vekttap'!C123","v":0}]
[{"$f":"IF(('Sporing av vekttap'!C124=0)*('Sporing av vekttap'!C123=0),TRUE)","v":true},{"$f":"IF(A103,0,IF('Sporing av vekttap'!B124=0,'Sporing av vekttap'!B123+5,'Sporing av vekttap'!B124))","v":"00:00:00"},{"$f":"'Sporing av vekttap'!C124","v":0}]
[{"$f":"IF(('Sporing av vekttap'!C125=0)*('Sporing av vekttap'!C124=0),TRUE)","v":true},{"$f":"IF(A104,0,IF('Sporing av vekttap'!B125=0,'Sporing av vekttap'!B124+5,'Sporing av vekttap'!B125))","v":"00:00:00"},{"$f":"'Sporing av vekttap'!C125","v":0}]
[{"$f":"IF(('Sporing av vekttap'!C126=0)*('Sporing av vekttap'!C125=0),TRUE)","v":true},{"$f":"IF(A105,0,IF('Sporing av vekttap'!B126=0,'Sporing av vekttap'!B125+5,'Sporing av vekttap'!B126))","v":"00:00:00"},{"$f":"'Sporing av vekttap'!C126","v":0}]
[{"$f":"IF(('Sporing av vekttap'!C127=0)*('Sporing av vekttap'!C126=0),TRUE)","v":true},{"$f":"IF(A106,0,IF('Sporing av vekttap'!B127=0,'Sporing av vekttap'!B126+5,'Sporing av vekttap'!B127))","v":"00:00:00"},{"$f":"'Sporing av vekttap'!C127","v":0}]
[{"$f":"IF(('Sporing av vekttap'!C128=0)*('Sporing av vekttap'!C127=0),TRUE)","v":true},{"$f":"IF(A107,0,IF('Sporing av vekttap'!B128=0,'Sporing av vekttap'!B127+5,'Sporing av vekttap'!B128))","v":"00:00:00"},{"$f":"'Sporing av vekttap'!C128","v":0}]
[{"$f":"IF(('Sporing av vekttap'!C129=0)*('Sporing av vekttap'!C128=0),TRUE)","v":true},{"$f":"IF(A108,0,IF('Sporing av vekttap'!B129=0,'Sporing av vekttap'!B128+5,'Sporing av vekttap'!B129))","v":"00:00:00"},{"$f":"'Sporing av vekttap'!C129","v":0}]